Cogmind - Beta 11 @@@ ROGUE MODE // 2022.04.16 @ 14:33:13 Player: Red Box Result: Self-destructed Performance ------------- Evolutions (1) 500 Regions Visited (3) 600 Robots Destroyed (37) 185 Value Destroyed (645) 645 Prototype IDs (4) 80 Alien Tech Used (0) 0 Bonus (0) 0 TOTAL SCORE: 2010 Bonus ------- None Cogmind --------- Core Integrity 323/400 Matter 300/300 Energy 100/100 System Corruption 0% Temperature Warm (122) Movement Rolling (95) Ox1 Location -9/Materials Parts ------- > --- POWER (1) -------- (None) > --- PROPULSION (2) --- Wheel Wheel > --- UTILITY (4) ------ Heat Sink Large Storage Unit Weapon Shielding Medium Armor Plating > --- WEAPON (2) ------- Advanced Beam Cannon Advanced Beam Cannon > --- INVENTORY (15) --- Improved Ion Engine Compact Wheel Compact Wheel Compact Wheel Armored Wheel Large Storage Unit Large Battery (200) Improved Terrain Scanner EM Pulse Gun EM Pulse Gun Medium Laser Advanced Beam Cannon Light Cannon Improved Grenade Launcher Hammer Peak State ------------ > --- POWER ------------ Improved Ion Engine > --- PROPULSION ------- Wheel Wheel > --- UTILITY ---------- Heat Sink Large Storage Unit Weapon Shielding Medium Armor Plating > --- WEAPON ----------- Advanced Beam Cannon Advanced Beam Cannon > --- INVENTORY -------- Improved Ion Engine Compact Wheel Compact Wheel Compact Wheel Armored Wheel Large Storage Unit Large Battery Improved Terrain Scanner EM Pulse Gun EM Pulse Gun Medium Laser Advanced Beam Cannon Light Cannon Improved Grenade Launcher Hammer [Rating: 17] Favorites ----------- Power Ion Engine Engine Ion Engine Propulsion Wheel Leg Aluminum Leg Wheel Wheel Utility Large Storage Unit Device Heat Sink Storage Large Storage Unit Protection Weapon Shielding Weapon EM Pulse Gun Energy Gun EM Pulse Gun Energy Cannon Advanced Beam Cannon Launcher Improved Grenade Launcher Impact Weapon Hammer Build | -11 -10 -10 -9 ------- Run | Scr Mat Min Mat Slots Evolved 2 | . . . 2 Power . | . . . . Propulsion . | . . . . Utility 2 | . . . 2 Weapon . | . . . . Parts Attached 40 | 10 17 6 7 Power 7 | 1 4 2 . Engine 7 | 1 4 2 . Core . | . . . . Reactor . | . . . . Propulsion 9 | 6 2 1 . Treads . | . . . . Leg 3 | 3 . . . Wheel 6 | 3 2 1 . Hover . | . . . . Flight . | . . . . Utility 8 | 1 4 . 3 Device 2 | . 2 . . Storage 3 | 1 2 . . Processor . | . . . . Hackware . | . . . . Protection 3 | . . . 3 Artifact . | . . . . Weapon 16 | 2 7 3 4 Energy Gun 10 | 2 5 2 1 Energy Cannon 2 | . . . 2 Ballistic Gun . | . . . . Ballistic Cannon . | . . . . Launcher 2 | . . 1 1 Special Weapon . | . . . . Impact Weapon 2 | . 2 . . Slashing Weapon . | . . . . Piercing Weapon . | . . . . Special Melee Weapon . | . . . . Unidentified Prototypes 1 | . . . 1 Corrupted Parts 1 | . . 1 . System Corruption 4 | . . 4 . Parts Lost 5 | . 2 2 1 Power 1 | . . . 1 Propulsion 2 | . 1 1 . Utility . | . . . . Weapon 2 | . 1 1 . Highest Loss Streak 1 | . 1 1 1 To Critical Strikes . | . . . . Average Slot Usage (%) 98 | . 98 99 99 Engine 13 | . 14 14 10 Wheel 26 | . 26 27 22 Device 13 | . 13 14 11 Storage 13 | . 14 14 11 Protection 3 | . . . 22 Energy Gun 23 | . 22 27 15 Impact Weapon 2 | . 5 . . Naked Turns . | . . . . Heaviest Build 44 | 14 30 32 44 Greatest Support 20 | 20 20 20 20 Greatest Overweight (x) 3 | 2 2 3 2 Average Overweight (x) . | . 1 1 1 Largest Inventory Capacity 15 | 8 15 15 15 Average Capacity 14 | 7 14 15 15 Most Carried 15 | 8 15 15 15 Average Carried 13 | 5 13 14 14 Final Capacity 15 | 8 15 15 15 Final Carried 15 | 8 15 15 15 Class Distribution -------------------- 100% | Mutant Dominant Class ---------------- Mutant | -10/Materials Mutant | -10/Mines Mutant | -9/Materials Resources | -11 -10 -10 -9 ----------- Run | Scr Mat Min Mat Matter Collected 624 | 245 215 53 111 Remotely . | . . . . Salvage Created 1073 | 94 501 233 245 Parts 77 | 8 33 19 17 Haulers Intercepted 4 | . 2 . 2 Recyclers Shooed 2 | 2 . . . Parts Field Recycled . | . . . . Retrieved Matter . | . . . . Parts Self-Destructed . | . . . . Prevented . | . . . . Kills | -11 -10 -10 -9 ------- Run | Scr Mat Min Mat Combat Hostiles Destroyed 25 | . 11 7 7 Melee 1 | . 1 . . Guns 14 | . 9 3 2 Cannons 2 | . . . 2 AOE 6 | . . 3 3 Classes Destroyed 7 | 2 5 . . Builder 2 | . 1 . 1 Tunneler 2 | 1 1 . . Hauler 4 | . 2 . 2 Recycler 1 | 1 . . . Watcher 3 | . 3 . . Swarmer 15 | . 6 3 6 Grunt 10 | . 5 4 1 Best Kill Streak 8 | 1 8 3 5 Combat Bots Only 5 | . 5 3 4 Max Kills in Single Turn 4 | 1 2 3 4 Gunslinging . | . . . . Exploded 3 | . . 3 3 Melee 1 | . 1 . . Uniques/NPCs Destroyed . | . . . . Combat | -11 -10 -10 -9 -------- Run | Scr Mat Min Mat Damage Taken 941 | . 323 303 315 Core 270 | . 101 92 77 Absorbed by Shields . | . . . . Redirected to Shielding 15 | . . . 15 Regen/Repaired (Parts) 26 | . 26 . . Core Remaining (%) 61 | 100 . 22 . Volleys Fired 77 | 4 34 14 25 Largest 2 | 2 2 2 2 Hottest 136 | 100 100 80 136 Shots Fired 150 | 8 66 28 48 Gun 130 | 8 66 27 29 Cannon 18 | . . . 18 Launcher 2 | . . 1 1 Special . | . . . . Kinetic . | . . . . Thermal 92 | 8 66 . 18 Explosive 2 | . . 1 1 Electromagnetic 56 | . . 27 29 Robot Hit Streak 31 | 2 13 31 6 Robot Miss Streak 4 | 1 3 . 4 Penetration Max . | . . . . Secondary Targets 2 | . 2 . . Max Gunslinging Chain 1 | . 1 . . Shots Hit Robots 104 | 4 49 26 25 Core Hits 47 | 3 22 10 12 Critical Kills . | . . . . Critical Parts Destroyed 1 | . 1 . . Critical Strikes 7 | 1 5 1 . Burn 5 | 1 4 . . Corrupt 1 | . . 1 . Smash 1 | . 1 . . Melee Attacks 12 | . 12 . . Impact 12 | . 12 . . Slashing . | . . . . Piercing . | . . . . Sneak Attacks 1 | . 1 . . Combat Hostiles . | . . . . Follow-up Attacks . | . . . . Damage Inflicted 2040 | 51 712 566 711 Guns 1149 | 51 549 325 224 Cannons 243 | . . . 243 Explosions 485 | . . 241 244 Melee 163 | . 163 . . Ramming . | . . . . Kinetic . | . . . . Thermal 935 | 51 549 59 276 Explosive 393 | . . 182 211 Electromagnetic 549 | . . 325 224 Impact 163 | . 163 . . Slashing . | . . . . Piercing . | . . . . Highest Corruption 4 | . . 4 . Average Corruption 4 | . . 4 . Corruption Purged . | . . . . Corruption Blocked . | . . . . Overload Shots . | . . . . Overflow Damage 46 | . 22 . 24 Projectiles 7 | . . . 7 Explosions 17 | . . . 17 Melee 22 | . 22 . . Knockbacks . | . . . . Impact . | . . . . Kinetic . | . . . . Secondary . | . . . . Self-Inflicted Damage 55 | . . 45 10 Shots 2 | . . 1 1 Rammed . | . . . . Targets Rammed . | . . . . Kicked . | . . . . Crushed . | . . . . Highest Temperature 455 | 78 303 23 455 Average Temperature 92 | 40 66 10 231 Received Heat Transfer 267 | . 120 135 12 Effects 6 | . . . 6 Energy Bleed 2 | . . . 2 Interference 4 | . . . 4 Siege Activations . | . . . . Robots Corrupted 1 | . . 1 . Combat Hostiles 1 | . . 1 . Parts Fried 4 | . 3 1 . Impact Corruptions 2 | . 2 . . Robots Melted . | . . . . Combat Hostiles . | . . . . Parts Melted 4 | . 3 . 1 Heat Transferred 2703 | 222 1924 50 507 Parts Sabotaged . | . . . . Parts Stolen . | . . . . Parts Stripped . | . . . . Power Chain Reactions 2 | . . 1 1 Missiles Intercepted . | . . . . Alert | -11 -10 -10 -9 ------- Run | Scr Mat Min Mat Peak Influence 308 | 10 302 125 308 Initial 39 | . 6 4 39 Average 92 | 3 104 69 133 Maximum Alert Level 1 | . 1 . 1 Low Security (%) 89 | 100 89 100 63 Level 1 10 | . 10 . 36 Level 2 . | . . . . Level 3 . | . . . . Level 4 . | . . . . Level 5 . | . . . . High Security . | . . . . Max Security . | . . . . Squads Dispatched 4 | . 2 . 2 Investigation 2 | . 2 . . Extermination . | . . . . Reinforcement 2 | . . . 2 Assault . | . . . . Garrison . | . . . . Intercept . | . . . . Searches Triggered . | . . . . Construction Impeded 1 | . . . 1 Haulers Reinforced . | . . . . Active Scanning Responses . | . . . . Cargo Convoy Interrupts . | . . . . Stealth | -11 -10 -10 -9 --------- Run | Scr Mat Min Mat Distress Signals 2 | . 2 . . Communications Jammed . | . . . . Distress Signals . | . . . . Times Spotted 37 | . 17 9 11 Peak Tracking Total 6 | . 6 3 5 Tactical Retreats . | . . . . Traps | -11 -10 -10 -9 ------- Run | Scr Mat Min Mat Traps Triggered 1 | . 1 . . Indirectly . | . . . . Trap Hack Attempts . | . . . . Triggered . | . . . . Disarmed . | . . . . Reprogrammed . | . . . . Reused . | . . . . Traps Extracted . | . . . . Installed . | . . . . Triggered . | . . . . Machines | -11 -10 -10 -9 ---------- Run | Scr Mat Min Mat Machines Disabled 3 | . 1 1 1 Max in Single Turn 1 | . 1 1 1 Machines Sabotaged . | . . . . Garrisons Compromised . | . . . . Overloaded Fab Kills . | . . . . Hacking | -11 -10 -10 -9 --------- Run | Scr Mat Min Mat Machines Accessed 14 | . 11 . 3 Terminals 10 | . 8 . 2 Fabricators . | . . . . Repair Stations 1 | . 1 . . Recycling Units 3 | . 2 . 1 Scanalyzers . | . . . . Garrison Access . | . . . . Total Hacks 48 | . 40 . 8 Successful 29 | . 23 . 6 Failed 19 | . 17 . 2 Catastrophic 1 | . 1 . . Database Lockouts . | . . . . Manual 28 | . 23 . 5 Terminals 33 | . 27 . 6 Fabricators . | . . . . Repair Stations 7 | . 7 . . Recycling Units 8 | . 6 . 2 Scanalyzers . | . . . . Garrison Access . | . . . . Terminal Hacks 11 | . 10 . 1 Part Schematic 1 | . 1 . . Robot Analysis 5 | . 5 . . Prototype ID Bank 2 | . 2 . . Terminal Index 1 | . 1 . . Unreport Threat 1 | . 1 . . Locate Traps 1 | . . . 1 Fabricator Hacks . | . . . . Repair Station Hacks 6 | . 6 . . Scan Component 3 | . 3 . . Repair 3 | . 3 . . Recycling Unit Hacks 2 | . 1 . 1 Retrieve Components 2 | . 1 . 1 Scanalyzer . | . . . . Garrison Access Hacks . | . . . . Unauthorized Hacks 10 | . 6 . 4 Terminals 7 | . 4 . 3 Track 2 | . 1 . 1 Assimilate 1 | . 1 . . Botnet 2 | . 1 . 1 Operators 2 | . 1 . 1 Fabricators . | . . . . Repair Stations . | . . . . Recycling Units 3 | . 2 . 1 Reject 2 | . 1 . 1 Tunnel 1 | . 1 . . Scanalyzers . | . . . . Garrison Access . | . . . . Data Cores Recovered . | . . . . Used . | . . . . Hacking Detections 13 | . 11 . 2 Full Trace Events . | . . . . Feedback Events . | . . . . Feedback Blocked . | . . . . Robot Schematics Acquired . | . . . . Robots Built . | . . . . Authchips . | . . . . Time . | . . . . Total Robot Build Rating . | . . . . Part Schematics Acquired 1 | . 1 . . Parts Built . | . . . . Authchips . | . . . . Time . | . . . . Total Part Build Rating . | . . . . Parts Repaired 3 | . 3 . . Time 90 | . 90 . . Parts Recycled . | . . . . Recycled Matter . | . . . . Retrieved Matter . | . . . . Retrieved Components 5 | . 4 . 1 Parts Scanalyzed . | . . . . Part Schematics Acquired . | . . . . Parts Damaged . | . . . . Bothacking | -11 -10 -10 -9 ------------ Run | Scr Mat Min Mat Used RIF Installer . | . . . . Robots Hacked . | . . . . Non-combat . | . . . . Combat . | . . . . Robot Hacks Applied . | . . . . Relay Couplers Released . | . . . . Fabnet Peak Effective % . | . . . . Robots Rewired . | . . . . Allies Hacked . | . . . . Hacks Repelled . | . . . . Allies | -11 -10 -10 -9 -------- Run | Scr Mat Min Mat Total Allies 1 | . 1 . . Largest Group 1 | . 1 . . Highest-Rated Group 10 | . 10 . . Highest-Rated Ally 10 | . 10 . . Total Orders . | . . . . Ally Attacks . | . . . . Total Damage . | . . . . Kills . | . . . . Allies Corrupted . | . . . . Allies Melted . | . . . . Intel | -11 -10 -10 -9 ------- Run | Scr Mat Min Mat Robot Analysis Total 5 | . 5 . . Derelict Logs Recovered 2 | . . 2 . Drone Launches . | . . . . Drone Recoveries . | . . . . Exploration | -11 -10 -10 -9 ------------- Run | Scr Mat Min Mat Turns Passed 2213 | 108 1132 677 296 Spaces Moved 1677 | 64 815 608 190 Core 15 | 15 . . . Treads . | . . . . Legs 40 | 40 . . . Wheels 1622 | 9 815 608 190 Hover . | . . . . Flight . | . . . . Fastest Speed 50 | 50 80 95 95 Average Speed 95 | 100 95 95 97 Slowest Speed 150 | 150 110 125 110 Overloaded Moves . | . . . . Propulsion Burnouts . | . . . . Robots Hopped . | . . . . Cave-ins Triggered . | . . . . Exploration Rate (%) 55 | 4 99 95 22 Regions Visited 3 Branch Regions 1 Pre-discovered Areas 1 | . 1 . . Known Exits Taken . | . . . . Unknown Exits Taken 3 | 1 1 1 . Scrap Searched 1 | . . 1 . Spaces Dug 2 | . 2 . . Terrain Destroyed 34 | . 2 15 17 Melee 2 | . 2 . . Projectile . | . . . . AOE 32 | . . 15 17 Terrain Rammed . | . . . . Walls Destroyed . | . . . . Machines Disabled . | . . . . Actions | -11 -10 -10 -9 --------- Run | Scr Mat Min Mat Total 2110 | 97 1083 677 253 Wait 241 | 5 176 41 19 Move 1674 | 63 814 607 190 Hop . | . . . . Pick Up 43 | 12 20 5 6 Fast Attach 9 | 5 3 . 1 Attach 10 | 2 4 2 2 Detach . | . . . . Swap 21 | 3 10 4 4 Drop 23 | 3 10 4 6 Fire 77 | 4 34 14 25 Melee 12 | . 12 . . Ram . | . . . . Kick . | . . . . Crush . | . . . . Escape Stasis . | . . . . Rewire . | . . . . Trap . | . . . . Miscellaneous . | . . . . Route ------- -11/Scrapyard -10/Materials (discovered 5 exits: *Mat x3 / [*Min x2]) -10/Mines (discovered 2 exits: *Mat x2) -9/Materials History --------- Turn | Location | Event 25 | -11/Scrapyard | Discovered new exit (range 14) 109 | -11/Scrapyard | Entered Materials 305 | -10/Materials | Build established: Mutant 328 | -10/Materials | Discovered new exit (range 14) 439 | -10/Materials | Discovered new exit (range 10) 583 | -10/Materials | Discovered new exit (range 15) 820 | -10/Materials | Discovered new exit (range 10) 1072 | -10/Materials | Repaired Com. Wheel 1099 | -10/Materials | Repaired Com. Wheel 1138 | -10/Materials | Repaired Imp. Terrain Scanner 1149 | -10/Materials | Discovered new exit (range 12) 1241 | -10/Materials | Entered Mines 1241 | -10/Mines | Accompanied by 1 ally 1244 | -10/Mines | Core integrity fell below 50% 1282 | -10/Mines | Received a Rocket Launcher from a helpful Derelict 1607 | -10/Mines | Joined a pair of Derelicts in attacking an 0b10 outpost 1747 | -10/Mines | Discovered new exit (range 8) 1816 | -10/Mines | Discovered new exit (range 12) 1845 | -10/Mines | Learned Materials security intel 1918 | -10/Mines | Entered Materials 1918 | -9/Materials | Evolved 2 slots: Utility x2 2214 | -9/Materials | Self-destructed Last Messages --------------- 02148_ R-06 Scavenger collects Flight Unit. 02149_ K-01 Serf collects debris. 02152_ R-06 Scavenger collects Lgt. Assault Rifle. 02176_ S-10 Pest destroyed. 02182_ Destroyed Flight Unit. 02182_ S-10 Pest destroyed. 02188_ Destroyed Lgt. Ion Engine. 02188_ Flight Unit melted. 02188_ S-10 Pest destroyed. 02191_ Overheating: System interference. 02191_ Heat Sink temporarily disabled. 02194_ Overheating: Energy bleed (-37). 02197_ ALERT: Construction progress impeded, dispatching reinforcements to local area. 02197_ U-05 Engineer builds a Door. 02197_ U-05 Engineer destroyed. 02198_ Overheating: Energy bleed (-25). 02199_ Overheating: System interference. 02199_ Adv. Beam Cannon temporarily disabled. 02206_ Imp. Ion Engine destroyed. Map ----- +----------------------------------------------------+ | ?????????????????????????????????????????????????? | | ?????????????????????????????????????????????????? | | ?????????????????????????????????????????????????? | | ?????????????????????????????????????????????????? | | ?????????????????????????????????????????????????? | | ?????????????????????????????????????????????##### | | ?????????????????????????????????????????????# # | | ?????????????????????????????????????????????# # | | ?????????????????????????????????????????????# # | | ?????????????????????????????????????????????# # | | ?????????????????????????????????????????????# # | | ???????????##################????????????????# + | | ??????????? #????????????????# # | | ?????????? ^ #????????????????### # | | ?????????? ^^ #??????????????????# # | | ????????? ^ ########???????????# # | | ?????????? # """ #???????????# # | | ?????????????????# ^ # """ #???????????# # | | ?????????????????# ^ w !%# """ #?????????### # | | ?????????????????#### ### =+ #?????????# | | ???????????????????# ???# # #?????????# | | ???????????????????#????# # #?????????# | | ????????????????????????#=%s########?????????# | | ????????????????????????#% # #??????????????# | | ????????????????????????#%* # #????????######## | | ????o???????????????????#@%%# ?????????# """ # | | ????????????????????????#% #??????????# """ + | | ??????????????########### #?####?????# """ # | | ??????????????# ## #? [[#?????# # | | ??????????????# """ ## ## [[#?????# # | | ??????????????# """!# ]]#?????#+###### | | ??????????????# """ #! ]]#?????# ###### | | ??????????????# !!/ T !!#?????# T | | ??????????????# """ # !!#?????# | | ??????????????# """=# #####?????# | | ??????????????# """ ## ############ | | ??????????????# ## # T ## | | ??????????????########### # ## """ | | ????????????????????????# / u ## """ | | ????????????????????????# # ## o "" | | ????????????????????????# #####+###### | | ????????????????????????# ##### ###### * | | ????????????????????????# !!= | | ????????????????????????+ !%%!## ### | | ??????????????????????? # ]]!*## #?##### | | ?????????????????????? # = ] = ##] ]]!!#?????? | | ?????????????????????! ?# ##]]]]!!#?????? | | ????????????????????###?# #########?????? | | ????????????????????????# !!! #?????????????? | | ???????????????????????# !! #?????????????? | +----------------------------------------------------+ Best States ------------- Heat Dissipation 38 Energy Generation 12 Energy Capacity 265 Matter Stores 300 Matter Capacity 300 Sight Range 16 Terrain Scan Range 16 Terrain Scan Density 10 Armor Coverage 225 Weapon Shielding 33 Evasion (%) 55 Item Schematics ----------------- Hcp. Storage Unit | -10/Materials | Hacked Robot Schematics ------------------ None Fabricated ------------ Nothing Alien Tech Used ----------------- None Achievements -------------- None Challenges ------------ None Game ------ Seed MiningMatterGenerator Manual? 0 Play Time 00:28:13 Cumulative 305.9 hours Start 2022.04.16 @ 13:47:48 End 2022.04.16 @ 14:33:13 Sessions 1 Manual Loads 0 Difficulty Rogue Special Mode None Game No. 252 Rogue 252 Adventurer 0 Explorer 0 Win Type - Total 0 Types 0/0/0/0/0/0/0/0/0 Lore% 56 Gallery% 60 Achievement% 44 Wizard Run 0 Options --------- ASCII 0 Keyboard 0 Movement Mouse Keybinds 0 Fullscreen 1 Font 16/SmallcapsGlow Map View 75x55 Tactical HUD 1 Map Filters NONE Filters NONE Steam 1 RUN: 9a2d0d02-7129-4250-89b4-39270fcb72a6